fUSD/lending_fUSD_20250907
["ID","MTS","AMOUNT","RATE_DAILY","PERIOD"]
[383954867,1757203215394,250.0,0.00015,2]
[383954871,1757203320186,153.52,0.00016202,2]
[383954872,1757203320468,153.52,0.00017155,2]
[383954873,1757203320984,153.52,0.00018108,2]
[383954874,1757203321058,153.52,0.00019061,2]
[383954875,1757203388945,6000.0,0.0002,2]
[383954878,1757203690778,10000.0,0.0002,2]
[383954884,1757203750924,404.0,0.0002,2]
[383954889,1757203831958,-153.52,0.00020014,2]
[383954890,1757203831968,-153.52,0.00020967,2]
[383954891,1757203831978,-396.0,0.0002118,2]
[383954893,1757203831988,-153.52,0.0002192,2]
[383954894,1757203831997,-776.0,0.0002237,2]
[383954897,1757203832007,-153.52,0.00022873,2]
[383954898,1757203832018,-760.0,0.0002355,2]
[383954899,1757203832028,-104.46292695,0.00023826,2]
[383954900,1757203832044,-49.05707305,0.00023826,2]
[383954901,1757203832054,-743.0,0.0002473,2]
[383954902,1757203832064,-153.52,0.00024779,2]
[383954903,1757203832074,-589.77712538,0.000249,2]
[383954904,1757203832083,-153.52,0.00025732,2]
[383954905,1757203832093,-727.0,0.0002592,2]
[383954906,1757203832102,-153.52,0.00026685,2]
[383954907,1757203832112,-711.0,0.000271,2]
[383954908,1757203832123,-153.52,0.00027638,2]
[383954909,1757203832133,-173.15,0.00027818,7]
[383954910,1757203832143,-589.77712523,0.00027827,8]
[383954911,1757203832152,-695.0,0.0002829,2]
[383954912,1757203832162,-153.52,0.00028591,2]
[383954913,1757203832172,-154.54895515,0.00028712,2]
[383954920,1757203837566,-9.88104485,0.00028712,2]
[383954921,1757203837576,-174.0,0.00029044,2]
[383954922,1757203837586,-173.15,0.00029079,30]
[383954923,1757203837596,-160.0,0.00029189,7]
[383954924,1757203837606,-300.0,0.00029189,2]
[383954925,1757203837616,-316.0,0.00029352,30]
[383954926,1757203837626,-679.0,0.0002947,2]
[383954927,1757203837636,-153.52,0.00029544,2]
[383954928,1757203837646,-166.67,0.00029833,2]
[383954929,1757203837657,-11471.44339203,0.0003,2]
[383954930,1757203837667,-173.15,0.00030339,30]
[383954931,1757203837677,-153.52,0.00030497,2]
[383954932,1757203837687,-663.0,0.0003065,2]
[383954933,1757203837696,-1930.0,0.000307,2]
[383954934,1757203837706,-589.77712523,0.00030754,14]
[383954935,1757203837716,-153.52,0.0003145,2]
[383954936,1757203837726,-420.0,0.00031485,2]
[383954937,1757203837738,-173.15,0.000316,30]
[383954938,1757203837748,-646.0,0.0003184,2]
[383954939,1757203837758,-166.67,0.00032295,2]
[383954940,1757203837769,-285.557,0.00032332,32]
[383954941,1757203837779,-153.52,0.00032403,2]
[383954942,1757203837788,-172.0,0.0003244,7]
[383954943,1757203837799,-172.0,0.00032633,2]
[383954944,1757203837808,-171.0,0.00032647,7]
[383954945,1757203837819,-171.0,0.00032728,2]
[383954946,1757203837831,-223.25954415,0.00032773,2]
[383954947,1757203837843,-859.17381,0.00032773,2]
[383954948,1757203837855,-1072.35,0.00032773,2]
[383954949,1757203837894,-1102.4,0.00032773,2]
[383954950,1757203837906,-2047.71469939,0.00032773,2]
[383954951,1757203837917,-3011.38049103,0.00032792,2]
[383954953,1757203837927,-2035.0,0.00032807,2]
[383954955,1757203837936,-567.0,0.00032807,2]
[383954957,1757203837945,-1301.0,0.00032807,2]
[383954959,1757203837955,-600.0,0.00032807,2]
[383954961,1757203837964,-1578.0,0.00032807,2]
[383954963,1757203837974,-811.0,0.00032807,2]
[383954965,1757203837983,-151.0,0.00032807,7]
[383954968,1757203838001,-151.0,0.00032807,7]
[383954971,1757203838019,-151.0,0.00032807,7]
[383954973,1757203838028,-151.0,0.00032807,7]
[383954975,1757203838037,-151.0,0.00032807,7]
[383954977,1757203838047,-151.0,0.00032807,7]
[383954979,1757203838056,-150.0,0.0003284,2]
[383954980,1757203838066,-150.0,0.0003284,2]
[383954983,1757203838075,-500.0,0.0003284,2]
[383954984,1757203838085,-500.0,0.0003284,2]
[383954986,1757203838095,-500.0,0.0003284,2]
[383954987,1757203838105,-150.0,0.0003284,2]
[383954988,1757203838373,-150.0,0.0003284,2]
[383954989,1757203838405,-150.0,0.0003284,2]
[383954990,1757203838415,-155.93645903,0.0003284,2]
[383954991,1757203838424,-150.0,0.0003284,2]
[383954992,1757203838434,-150.0,0.0003284,2]
[383954993,1757203838444,-500.0,0.0003284,2]
[383954994,1757203838454,-500.0,0.0003284,2]
[383954995,1757203838465,-150.0,0.0003284,2]
[383954996,1757203838475,-150.0,0.0003284,2]
[383954997,1757203838485,-150.0,0.0003284,2]
[383954998,1757203838495,-500.0,0.0003284,2]
[383954999,1757203838504,-200.0,0.0003284,2]
[383955000,1757203838514,-500.0,0.0003284,2]
[383955001,1757203838523,-150.0,0.0003284,2]
[383955002,1757203838533,-259.46,0.00032856,2]
[383955003,1757203838542,-259.46,0.00032857,2]
[383955004,1757203838552,-173.15,0.0003286,30]
[383955005,1757203838561,-454.58454421,0.00032865,2]
[383955006,1757203838571,-24017.70905788,0.00032866,2]
[383955007,1757203840114,-151.0,0.00032863,7]
[383955008,1757203840124,-151.0,0.00032864,7]
[383955009,1757203840133,-229.08131506,0.00032866,2]
[383955010,1757203840145,-4499.10546077,0.00032866,2]
[383955011,1757203840157,-5819.05250182,0.00032866,2]
[383955012,1757203840168,-6883.38337673,0.00032866,2]
[383955013,1757203840180,-4128.63986883,0.00032866,2]
[383955014,1757203840191,-4432.26839026,0.00032866,2]
[383955015,1757203840203,-13284.56906506,0.00032866,2]
[383955016,1757203840214,-13724.12069904,0.00032866,2]
[383955017,1757203840226,-1500.04102813,0.00032866,2]
[383955018,1757203840238,-12370.92523331,0.00032866,2]
[383955019,1757203840253,-156132.44825011,0.00032866,2]
[383955020,1757203840263,-187120.75216,0.00032866,2]
[383955021,1757203840273,-151.0,0.00032866,7]
[383955022,1757203840282,-151.0,0.00032866,7]
[383955023,1757203840292,-151.0,0.00032866,7]
[383955024,1757203840301,-151.0,0.00032866,7]
[383955025,1757203840311,-28787.8080246,0.00032867,2]
[383955026,1757203840320,-519.15779073,0.00032867,2]
[383955027,1757203840329,-151.77,0.00032867,2]
[383955028,1757203840339,-500.0,0.00032873,5]
[383955029,1757203840348,-500.8517307,0.00032873,5]
[383955030,1757203840358,-506.92815019,0.00032873,5]
[383955031,1757203840367,-500.0,0.00032873,5]
[383955032,1757203840378,-500.0,0.00032873,5]
[383955033,1757203840387,-500.0,0.00032873,5]
[383955034,1757203840396,-500.0,0.00032873,3]
[383955035,1757203840406,-500.39292185,0.00032873,5]
[383955036,1757203840416,-335.86037529,0.00032873,5]
[383955037,1757203840426,-269.29286367,0.00032873,5]
[383955038,1757203840436,-536.77201311,0.00032873,5]
[383955039,1757203840446,-151.0,0.00032873,7]
[383955040,1757203840456,-151.0,0.00032873,7]
[383955041,1757203840465,-423.4246746,0.00032875,10]
[383955042,1757203840475,-666.0,0.00032875,10]
[383955043,1757203840484,-300.0,0.00032875,10]
[383955044,1757203840494,-300.0,0.00032875,10]
[383955045,1757203840504,-666.0,0.00032875,10]
[383955046,1757203840513,-300.0,0.00032875,10]
[383955047,1757203840523,-300.0,0.00032875,10]
[383955048,1757203840532,-300.0,0.00032875,10]
[383955049,1757203840542,-300.0,0.00032876,10]
[383955050,1757203840551,-151.0,0.00032876,7]
[383955051,1757203840561,-151.0,0.00032876,7]
[383955052,1757203840571,-151.0,0.00032876,7]
[383955053,1757203840581,-151.0,0.00032876,7]
[383955054,1757203840591,-174.445079,0.00032876,7]
[383955055,1757203840600,-186.578004,0.00032876,7]
[383955056,1757203840610,-27416.49,0.00032876,8]
[383955057,1757203840619,-27416.49,0.00032876,8]
[383955058,1757203840629,-27416.49,0.00032876,8]
[383955059,1757203840638,-27416.49,0.00032876,8]
[383955060,1757203840648,-27416.49,0.00032876,8]
[383955061,1757203840657,-27416.49,0.00032876,8]
[383955062,1757203840667,-27416.49,0.00032876,8]
[383955063,1757203840677,-27416.49,0.00032876,8]
[383955064,1757203840687,-27416.49,0.00032876,8]
[383955065,1757203840696,-27416.49,0.00032876,8]
[383955066,1757203840706,-27416.49,0.00032876,8]
[383955067,1757203840715,-27416.49,0.00032876,8]
[383955068,1757203840725,-27416.49,0.00032876,8]
[383955069,1757203840735,-27416.49,0.00032876,8]
[383955070,1757203841052,-27416.49,0.00032876,8]
[383955071,1757203841061,-27416.49,0.00032876,8]
[383955072,1757203841071,-27416.49,0.00032876,8]
[383955073,1757203841080,-27416.49,0.00032876,8]
[383955074,1757203841091,-27416.49,0.00032876,8]
[383955075,1757203841101,-27416.49,0.00032876,8]
[383955076,1757203841110,-27416.49,0.00032876,8]
[383955077,1757203841121,-27416.49,0.00032876,8]
[383955078,1757203841130,-27416.49,0.00032876,8]
[383955079,1757203841141,-27416.56235638,0.00032876,8]
[383955080,1757203841154,-151.0,0.00032876,7]
[383955081,1757203841168,-230.156016,0.00032876,7]
[383955082,1757203841178,-151.0,0.00032877,7]
[383955083,1757203841188,-151.0,0.00032877,7]
[383955084,1757203841199,-151.0,0.00032877,7]
[383955085,1757203841215,-151.0,0.00032877,7]
[383955086,1757203841224,-151.0,0.00032877,7]
[383955087,1757203841234,-162.021184,0.00032877,7]
[383955088,1757203841244,-151.0,0.00032877,7]
[383955089,1757203841254,-151.0,0.00032877,7]
[383955090,1757203841263,-151.0,0.00032877,7]
[383955091,1757203841272,-291.803369,0.00032877,7]
[383955092,1757203841282,-151.0,0.00032877,7]
[383955093,1757203841292,-151.0,0.00032877,7]
[383955094,1757203841301,-151.0,0.00032877,7]
[383955095,1757203841311,-163.883807,0.00032877,7]
[383955096,1757203841320,-154.459249,0.00032877,7]
[383955097,1757203841329,-151.0,0.00032877,7]
[383955098,1757203841339,-151.0,0.00032877,7]
[383955099,1757203841348,-151.0,0.00032877,7]
[383955100,1757203841358,-151.0,0.00032877,7]
[383955101,1757203841367,-151.0,0.00032877,7]
[383955102,1757203841377,-256.540798,0.00032877,7]
[383955103,1757203841386,-151.0,0.00032877,7]
[383955104,1757203841395,-151.0,0.00032877,7]
[383955105,1757203841405,-151.0,0.00032877,7]
[383955106,1757203841414,-151.0,0.00032877,7]
[383955107,1757203841423,-151.0,0.00032877,7]
[383955108,1757203841433,-151.0,0.00032877,7]
[383955109,1757203841443,-248.854572,0.00032877,7]
[383955110,1757203841452,-151.0,0.00032877,7]
[383955111,1757203841461,-151.0,0.00032877,7]
[383955112,1757203841471,-151.0,0.00032877,7]
[383955113,1757203841481,-151.0,0.00032877,7]
[383955114,1757203841491,-151.0,0.00032877,7]
[383955115,1757203841502,-151.0,0.00032877,7]
[383955116,1757203841511,-151.0,0.00032877,7]
[383955117,1757203841521,-151.0,0.00032877,7]
[383955118,1757203841531,-231.169811,0.00032877,7]
[383955119,1757203841542,-151.0,0.00032877,7]
[383955120,1757203841552,-151.0,0.00032877,7]
[383955121,1757203841563,-151.0,0.00032877,7]
[383955122,1757203841575,-151.0,0.00032877,7]
[383955123,1757203841585,-201.374245,0.00032877,7]
[383955124,1757203841595,-151.0,0.00032877,7]
[383955125,1757203841606,-151.0,0.00032877,7]
[383955126,1757203841615,-151.0,0.00032877,7]
[383955127,1757203841626,-4.72385176,0.00032877,7]
[383955128,1757203841640,-146.27614824,0.00032877,7]
[383955129,1757203841649,-151.0,0.00032877,7]
[383955130,1757203841659,-151.0,0.00032877,7]
[383955131,1757203841669,-151.0,0.00032877,7]
[383955132,1757203841679,-186.21093,0.00032877,7]
[383955133,1757203841688,-151.0,0.00032877,7]
[383955134,1757203841699,-151.0,0.00032877,7]
[383955135,1757203841708,-0.6296906,0.00032877,7]
[383955136,1757203841735,-150.3703094,0.00032877,7]
[383955137,1757203841745,-151.0,0.00032877,7]
[383955138,1757203841756,-144.71616731,0.00032877,7]
[383955320,1757204763143,9420.40303748,8e-05,2]
[383955329,1757205032072,-586.71141362,0.000249,2]
[383955330,1757205032082,-160.38470809,0.00027,2]
[383955332,1757205032092,-250.0,0.0002739,2]
[383955333,1757205032102,-153.16143683,0.00027601,2]
[383955334,1757205032113,-586.7114136,0.00027827,8]
[383955335,1757205032123,-306.32287365,0.00028601,7]
[383955337,1757205032133,-77.17850326,0.00028601,7]
[383955340,1757205032147,-229.14437039,0.00028601,7]
[383955342,1757205032156,-517.49370582,0.00029,2]
[383955355,1757205037948,-37.50629418,0.00029,2]
[383955356,1757205037958,-467.03422074,0.00030074,2]
[383955360,1757205039319,-47.816733,0.00030074,2]
[383955361,1757205039330,-544.0,0.0003018,2]
[383955362,1757205039339,-103.48047974,0.00030506,2]
[383955371,1757205040388,-111.30952026,0.00030506,2]
[383955372,1757205040403,-586.7114136,0.00030754,14]
[383955373,1757205040415,-155.0,0.00030767,2]
[383955374,1757205040425,-442.93,0.00030768,2]
[383955375,1757205040436,-125.11206642,0.00030935,30]
[383955376,1757205040601,-164.54793358,0.00030935,30]
[383955377,1757205040612,-160.0,0.00030938,7]
[383955378,1757205040622,-484.16,0.00031,3]
[383955379,1757205040632,-152.02043347,0.00031369,3]
[383955380,1757205040690,-256.29702653,0.00031369,3]
[383955405,1757205045866,-95.68254,0.00031369,3]
[383955406,1757205045875,-533.0,0.0003137,2]
[383955407,1757205045884,-12111.70319406,0.00031426,2]
[383955408,1757205045900,-7888.28680594,0.00031426,2]
[383955409,1757205045910,-2616.16,0.00031426,2]
[383955410,1757205045920,-16178.23,0.00031426,2]
[383955411,1757205045930,-300.0,0.000315,11]
[383955412,1757205045940,-700.0,0.000316,11]
[383955413,1757205045949,-228.446,0.00031699,30]
[383955414,1757205045959,-1000.0,0.000317,11]
[383955415,1757205045969,-109350.27301365,0.000317,3]
[383955422,1757205692174,158.76,0.00015129,2]
[383955423,1757206024815,-158.76,0.00020172,2]
[383955424,1757206024840,-86.91,0.00021861,2]
[383955432,1757206232092,-191.43081055,0.00020172,2]
[383955433,1757206232103,-395.0,0.0002355,2]
[383955434,1757206232113,-245.67,0.00024405,2]
[383955435,1757206232123,-395.0,0.0002477,2]
[383955436,1757206232133,-686.97523297,0.000249,2]
[383955437,1757206232142,-158.76,0.00025215,2]
[383955438,1757206232152,-395.0,0.0002598,2]
[383955439,1757206232161,-395.0,0.0002719,2]
[383955440,1757206232171,-686.97523283,0.00027827,8]
[383955441,1757206232180,-395.0,0.000284,2]
[383955442,1757206232192,-250.0,0.0002935,2]
[383955443,1757206232202,-150.0,0.00029381,2]
[383955444,1757206232211,-19652.64545633,0.00029563,2]
[383955445,1757206232234,-1462.71725738,0.00029563,2]
[383955446,1757206232265,-1441.43081055,0.00029563,2]
[383955461,1757206232551,-6007.20647574,0.00029563,2]
[383955463,1757206232562,-395.0,0.0002961,2]
[383955465,1757206232571,-300.0,0.00029715,2]
[383955468,1757206232581,-1200.0,0.00029715,2]
[383955470,1757206232591,-38024.95,0.00029716,2]
[383955472,1757206232601,-8917.92,0.00029815,2]
[383955474,1757206232609,-19106.69206538,0.00029815,2]
[383955612,1757206239932,-1913.25793462,0.00029815,2]
[383955614,1757206239944,-843.55997768,0.00029865,2]
[383955616,1757206239954,-163.94,0.00029937,2]
[383955618,1757206239964,-160.0,0.00029969,7]
[383955620,1757206239973,-265.52,0.00030029,30]
[383955622,1757206239982,-3110.0081215,0.00030075,2]
[383955624,1757206239994,-1987.6918785,0.00030075,2]
[383955626,1757206240003,-158.76,0.00030258,2]
[383955628,1757206240013,-182.23,0.00030434,2]
[383955629,1757206240023,-1500.0,0.00030613,120]
[383955630,1757206240033,-300.0,0.00030619,2]
[383955631,1757206240044,-4815.10198612,0.00030673,2]
[383955632,1757206240058,-1431.42801388,0.00030673,2]
[383955633,1757206240067,-470.65220976,0.00030741,2]
[383955634,1757206240077,-686.97523283,0.00030754,14]
[383955635,1757206240086,-395.0,0.0003082,2]
[383955636,1757206240096,-4930.20891477,0.00030954,2]
[383955637,1757206240105,-751.00573034,0.00031,2]
[383955638,1757206240115,-8406.11879483,0.00031,2]
[383955639,1757206240141,-337.22856323,0.00031,2]
[383955640,1757206240173,-20459.60965148,0.00031,2]
[383955662,1757206610710,3457.19283822,0.0002,7]
[383955663,1757206892462,158.73,0.00014557,2]
[383955664,1757207432119,-281.40044065,0.00019899,2]
[383955665,1757207432128,-250.0,0.00019899,2]
[383955666,1757207432138,-40.51991574,0.00019899,2]
[383955667,1757207432149,-109.48008426,0.00019899,2]
[383955668,1757207432160,-250.0,0.00020559,2]
[383955669,1757207432169,-864.57168921,0.00020998,2]
[383955670,1757207432231,-335.42831079,0.00020998,2]
[383955671,1757207432241,-258.94841589,0.00020998,2]
[383955672,1757207432253,-41.05158411,0.00020998,2]
[383955673,1757207432262,-300.0,0.00020998,2]
[383955674,1757207432271,-767.01509024,0.00020999,2]
[383955675,1757207432286,-232.98490976,0.00020999,2]
[383955676,1757207432296,-115.91848032,0.00020999,2]
[383955677,1757207432326,-184.08151968,0.00020999,2]
[383955678,1757207432335,-13467.74813548,0.00021,7]
[383955679,1757207432348,-4391.89696603,0.00021,7]
[383955680,1757207432387,-3196.92559791,0.00021,7]
[383955681,1757207432399,-627.62514,0.00021,7]
[383955682,1757207432438,-20408.88669074,0.00021,7]
[383955683,1757207432449,-392.54313184,0.00021,7]
[383955684,1757207432482,-1348.65779542,0.00021,7]
[383955685,1757207432493,-393.2474532,0.00021,7]
[383955686,1757207432505,-323.3292545,0.00021,7]
[383955715,1757207438209,-3170.34073729,0.00021,7]
[383955716,1757207438265,-443.13092382,0.00021,7]
[383955744,1757207440257,-2642.99781274,0.00021,7]
[383955745,1757207440268,-783.4367735,0.00021,7]
[383955746,1757207440291,-45623.04074931,0.00021,7]
[383955747,1757207440300,-212.67823062,0.00021,7]
[383955748,1757207440310,-514.85095374,0.00021,7]
[383955749,1757207440319,-250.0,0.00021888,2]
[383955750,1757207440328,-373.0,0.00022841,2]
[383955751,1757207440337,-1680.0,0.0002295,2]
[383955752,1757207440347,-1098.66345235,0.000249,2]
[383955753,1757207440357,-2351.0,0.00025083,2]
[383955754,1757207440366,-151.41,0.00025633,2]
[383955755,1757207440376,-3292.0,0.00027414,2]
[383955756,1757207440387,-1098.66345218,0.00027827,8]
[383955757,1757207440397,-250.0,0.00027982,2]
[383955758,1757207440407,-299.69,0.00028011,30]
[383955759,1757207440416,-207.14,0.00028011,30]
[383955760,1757207440426,-3241.3,0.00028015,2]
[383955761,1757207440435,-3374.53,0.00028264,2]
[383955762,1757207440444,-398.47,0.0002885,2]
[383955763,1757207440454,-1930.25265525,0.00029,2]
[383955764,1757207440463,-151.41,0.00029058,2]
[383955765,1757207440473,-299.69,0.00029249,30]
[383955766,1757207440482,-207.14,0.00029249,30]
[383955767,1757207440492,-243.39,0.00029432,30]
[383955768,1757207440502,-8702.47840555,0.000299,2]
[383955769,1757207440511,-152.0,0.00029938,3]
[383955770,1757207440521,-4609.0,0.00029962,2]
[383955771,1757207440530,-151.0,0.00029997,7]
[383955772,1757207440540,-10000.0,0.0003,30]
[383955773,1757207440549,-10000.0,0.0003,30]
[383955774,1757207440558,-10000.0,0.0003,30]
[383955775,1757207440567,-10000.0,0.0003,30]
[383955776,1757207440576,-10000.0,0.0003,30]
[383955777,1757207440586,-10000.0,0.0003,30]
[383955778,1757207440595,-10000.0,0.0003,30]
[383955779,1757207440605,-10000.0,0.0003,30]
[383955780,1757207440615,-10000.0,0.0003,30]
[383955781,1757207440627,-10000.0,0.0003,30]
[383955782,1757207440637,-10000.0,0.0003,30]
[383955783,1757207440646,-10000.0,0.0003,30]
[383955784,1757207440655,-300.0,0.0003,120]
[383955785,1757207440665,-10064.56673074,0.0003,2]
[383955786,1757207440675,-151.0,0.0003,7]
[383955787,1757207440685,-1000.00000001,0.00030029,7]
[383955788,1757207440696,-160.0,0.00030054,2]
[383955789,1757207440706,-212.67823062,0.00030056,2]
[383955790,1757207440716,-514.85095374,0.00030057,2]
[383955792,1757207440727,-8702.47840548,0.00030122,2]
[383955794,1757207440737,-1614.37719771,0.00030175,2]
[383955795,1757207440747,-767.61144847,0.00030223,2]
[383955796,1757207440757,-166.69,0.00030243,2]
[383955797,1757207440768,-163.31,0.00030257,2]
[383955798,1757207440779,-398.47,0.00030292,2]
[383955799,1757207440790,-8702.47840548,0.00030344,2]
[383955800,1757207440800,-160.0,0.00030461,7]
[383955801,1757207440810,-299.69,0.00030486,30]
[383955802,1757207440819,-207.14,0.00030486,30]
[383955803,1757207440829,-767.61144847,0.00030508,2]
[383955804,1757207440839,-181.54,0.00030519,2]
[383955805,1757207440849,-8702.47840548,0.00030567,2]
[383955806,1757207440858,-151.0,0.00030567,7]
[383955807,1757207440868,-156.832989,0.00030567,7]
[383955808,1757207440878,-151.0,0.00030567,7]
[383955809,1757207440888,-151.0,0.00030567,7]
[383955810,1757207440897,-151.0,0.00030567,7]
[383955811,1757207440908,-268.975442,0.00030567,7]
[383955812,1757207440917,-200.0,0.00030667,2]
[383955813,1757207440927,-600.0,0.00030667,2]
[383955814,1757207440936,-200.0,0.00030667,2]
[383955815,1757207440946,-1480.7280745,0.00030685,2]
[383955816,1757207440956,-1008.8136735,0.00030685,2]
[383955817,1757207440965,-915.6319234,0.00030685,2]
[383955818,1757207440974,-3044.7995877,0.00030685,2]
[383955819,1757207440984,-8385.9473153,0.00030685,2]
[383955820,1757207440994,-151.0,0.00030685,7]
[383955821,1757207441004,-151.0,0.00030685,7]
[383955822,1757207441013,-204.58876,0.00030685,7]
[383955823,1757207441022,-9287.2588443,0.00030685,2]
[383955824,1757207441032,-151.0,0.00030685,7]
[383955825,1757207441042,-151.0,0.00030685,7]
[383955826,1757207441052,-151.0,0.00030685,7]
[383955827,1757207441064,-151.0,0.00030685,7]
[383955828,1757207441075,-168.06141,0.00030685,7]
[383955829,1757207441085,-1125.8228968,0.00030685,2]
[383955830,1757207441095,-151.0,0.0003069,7]
[383955831,1757207441104,-292.71421,0.0003069,7]
[383955832,1757207441114,-292.71421,0.0003069,7]
[383955833,1757207441125,-292.71421,0.0003069,7]
[383955834,1757207441135,-292.71421,0.0003069,7]
[383955835,1757207441146,-171.0,0.0003075,2]
[383955836,1757207441156,-1098.66345218,0.00030754,14]
[383955837,1757207441166,-8702.47840548,0.00030789,2]
[383955838,1757207441176,-151.0,0.00030789,7]
[383955839,1757207441186,-151.0,0.0003081,7]
[383955840,1757207441197,-151.0,0.0003081,2]
[383955841,1757207441207,-440.49444121,0.0003081,2]
[383955842,1757207441216,-151.0,0.0003081,2]
[383955843,1757207441226,-1000.0,0.0003081,2]
[383955844,1757207441236,-267.46074303,0.0003081,2]
[383955845,1757207441245,-160.0,0.0003081,2]
[383955846,1757207441255,-151.0,0.0003081,2]
[383955847,1757207441265,-695.39793187,0.0003081,2]
[383955848,1757207441274,-1000.0,0.0003081,2]
[383955849,1757207441283,-1000.0,0.0003081,2]
[383955850,1757207441293,-1000.0,0.0003081,2]
[383955851,1757207441302,-1000.0,0.0003081,2]
[383955852,1757207441312,-3000.0,0.0003081,2]
[383955853,1757207441321,-1000.0,0.0003081,2]
[383955854,1757207441331,-1000.0,0.0003081,2]
[383955855,1757207441341,-1000.0,0.0003081,2]
[383955856,1757207441350,-1000.0,0.0003081,2]
[383955857,1757207441360,-1000.0,0.0003081,2]
[383955858,1757207441370,-151.0,0.0003081,2]
[383955859,1757207441381,-151.0,0.0003081,2]
[383955860,1757207441391,-209.77701247,0.0003081,2]
[383955861,1757207441400,-151.0,0.0003081,2]
[383955862,1757207441410,-151.0,0.0003081,2]
[383955863,1757207441419,-151.0,0.0003081,2]
[383955864,1757207441429,-151.0,0.0003081,2]
[383955865,1757207441438,-151.0,0.0003081,2]
[383955866,1757207441448,-151.0,0.0003081,2]
[383955867,1757207441457,-151.0,0.0003081,2]
[383955868,1757207441466,-151.0,0.0003081,2]
[383955869,1757207441476,-151.0,0.0003081,2]
[383955870,1757207441486,-151.0,0.0003081,2]
[383955871,1757207441495,-151.0,0.0003081,2]
[383955872,1757207441505,-151.0,0.0003081,2]
[383955873,1757207441515,-500.0,0.0003081,2]
[383955874,1757207441525,-151.0,0.0003081,2]
[383955875,1757207441534,-151.0,0.0003081,2]
[383955876,1757207441544,-151.0,0.0003081,2]
[383955877,1757207441553,-322.6107,0.0003081,2]
[383955878,1757207441562,-500.0,0.0003081,2]
[383955879,1757207441571,-151.0,0.0003081,2]
[383955880,1757207441581,-151.0,0.0003081,2]
[383955881,1757207441591,-151.0,0.0003081,2]
[383955882,1757207441600,-151.0,0.0003081,2]
[383955883,1757207441611,-500.0,0.0003081,2]
[383955884,1757207441622,-151.0,0.0003081,2]
[383955885,1757207441631,-500.0,0.0003081,2]
[383955886,1757207441641,-151.0,0.0003081,2]
[383955887,1757207441651,-500.0,0.0003081,2]
[383955888,1757207441661,-151.0,0.0003081,2]
[383955889,1757207441671,-500.0,0.0003081,2]
[383955890,1757207441680,-151.0,0.0003081,2]
[383955891,1757207441690,-500.0,0.0003081,2]
[383955892,1757207441700,-151.0,0.0003081,2]
[383955893,1757207441709,-500.0,0.0003081,2]
[383955894,1757207441719,-151.0,0.0003081,2]
[383955895,1757207441728,-250.0,0.0003081,2]
[383955896,1757207441737,-500.0,0.0003081,2]
[383955897,1757207441747,-250.0,0.0003081,2]
[383955898,1757207441757,-250.0,0.0003081,2]
[383955899,1757207441767,-500.0,0.0003081,2]
[383955900,1757207441778,-250.0,0.0003081,2]
[383955901,1757207441788,-250.0,0.0003081,2]
[383955902,1757207441797,-500.0,0.0003081,2]
[383955903,1757207441807,-250.0,0.0003081,2]
[383955904,1757207441817,-250.0,0.0003081,2]
[383955905,1757207441827,-250.0,0.0003081,2]